Cogmind - Beta 10.2 @@@ ROGUE MODE // 2021.07.10 @ 17:52:43 Player: Demise Result: Self-destructed Performance ------------- Evolutions (2) 1000 Regions Visited (7) 1400 Robots Destroyed (133) 665 Value Destroyed (3097) 3097 Prototype IDs (45) 900 Alien Tech Used (0) 0 Bonus (745) 745 TOTAL SCORE: 7807 Bonus ------- High Alert Combat Kills 118 Follower Combat Kills 345 Aligned with FarCom 300 Friendly Fire -18 Cogmind --------- Core Integrity 444/550 Matter 181/300 Energy 310/310 System Corruption 0% Temperature Cool (104) Movement Treading (237) Ox4 Location -8/Materials Parts ------- > --- POWER (1) -------- Reinforced Fission Core > --- PROPULSION (2) --- Armored Treads Advanced Treads > --- UTILITY (6) ------ Humpback Humpback > --- WEAPON (2) ------- Heavy Assault Rifle > --- INVENTORY (44) --- Heavy Ion Engine Makeshift Power Source Makeshift Power Source Advanced Treads Advanced Treads Advanced Myomer Leg Combat Antigrav System Large Storage Unit Large Storage Unit Large Storage Unit Large Battery (300) High-capacity Matter Pod (200) Gravity Neutralizing Apparatus Gravity Neutralizing Apparatus Improved Sensor Array Improved ECM Suite Hacking Suite Hacking Suite Skeleton Box System Purifier Long-range Tractor Beam Advanced Recalibrator Decoy Drone Bay (16/16) Army-in-a-Box (30/30) Heavy Particle Gun EM Pulse Cannon Heavy Assault Rifle Heavy Assault Rifle XL Autogun Array 8R-AWN's Boregun Improved Grenade Launcher Datajack Mining Laser Makeshift Axe Deploy-a-Sentry Peak State ------------ > --- POWER ------------ Reinforced Fission Core > --- PROPULSION ------- Armored Treads Advanced Treads > --- UTILITY ---------- Humpback Humpback Medium Armor Plating Advanced Recalibrator > --- WEAPON ----------- Heavy Assault Rifle Heavy Assault Rifle > --- INVENTORY -------- Heavy Ion Engine Makeshift Power Source Makeshift Power Source Light Treads Advanced Myomer Leg Combat Antigrav System Improved VTOL Module Large Storage Unit Large Storage Unit Large Storage Unit Large Battery High-capacity Matter Pod Gravity Neutralizing Apparatus Gravity Neutralizing Apparatus Improved Sensor Array Improved ECM Suite Light Armor Plating Hacking Suite Skeleton Box System Purifier High-powered Tractor Beam Decoy Drone Bay Army-in-a-Box Light EM Pulse Cannon Heavy Assault Rifle Heavy Assault Rifle Heavy Assault Rifle XL Autogun Array 8R-AWN's Boregun Rocket Launcher Improved Grenade Launcher Datajack Mining Laser Makeshift Axe Deploy-a-Sentry [Rating: 51] Favorites ----------- Power Reinforced Fission Core Engine Heavy Ion Engine Power Core Reinforced Fission Core Propulsion Light Treads Treads Light Treads Leg Advanced Myomer Leg Hover Unit Gravmag Array Utility Large Storage Unit Device Advanced Recalibrator Storage Large Storage Unit Processor Signal Interpreter Protection Hardened Light Armor Plating Weapon Heavy Assault Rifle Energy Gun Heavy Particle Gun Energy Cannon Light EM Pulse Cannon Ballistic Gun Heavy Assault Rifle Ballistic Cannon Light Cannon Launcher Rocket Launcher Special Weapon Mining Laser Slashing Weapon Scythe Special Melee Weapon Datajack Build | -11 -10 -10 -9 -9 -9 -8 -8 ------- Run | Scr Mat Min Mat Min Exi Min Mat Slots Evolved 4 | . . . 2 . . . 2 Power . | . . . . . . . . Propulsion . | . . . . . . . . Utility 4 | . . . 2 . . . 2 Weapon . | . . . . . . . . Parts Attached 123 | 5 19 1 38 5 27 . 28 Power 10 | . 3 1 5 . 1 . . Engine 8 | . 3 1 4 . . . . Core 2 | . . . 1 . 1 . . Reactor . | . . . . . . . . Propulsion 32 | 2 2 . 12 2 9 . 5 Treads 30 | 2 2 . 12 2 7 . 5 Leg 1 | . . . . . 1 . . Wheel . | . . . . . . . . Hover 1 | . . . . . 1 . . Flight . | . . . . . . . . Utility 33 | 1 4 . 10 . 6 . 12 Device 4 | . . . . . 1 . 3 Storage 11 | 1 3 . 5 . 2 . . Processor 1 | . . . 1 . . . . Hackware . | . . . . . . . . Protection 17 | . 1 . 4 . 3 . 9 Artifact . | . . . . . . . . Weapon 48 | 2 10 . 11 3 11 . 11 Energy Gun 1 | . . . . . . . 1 Energy Cannon 1 | . . . . . . . 1 Ballistic Gun 28 | 2 5 . 8 2 4 . 7 Ballistic Cannon 3 | . 2 . . 1 . . . Launcher 4 | . . . . . 2 . 2 Special Weapon 6 | . 3 . 3 . . . . Impact Weapon . | . . . . . . . . Slashing Weapon 4 | . . . . . 4 . . Piercing Weapon . | . . . . . . . . Special Melee Weapon 1 | . . . . . 1 . . Unidentified Prototypes 2 | . . . . . 1 . 1 Parts Lost 11 | . 1 . 3 . 4 . 3 Power . | . . . . . . . . Propulsion 4 | . . . 1 . 3 . . Utility 2 | . . . . . . . 2 Weapon 5 | . 1 . 2 . 1 . 1 Highest Loss Streak 3 | . 1 . 2 . 3 . 2 Average Slot Usage (%) 89 | . 90 100 98 100 83 77 78 Engine 7 | . 13 14 10 11 4 . . Core 4 | . . . . . 6 11 9 Treads 20 | . 28 28 21 22 14 22 18 Storage 27 | . 19 28 38 44 25 22 18 Protection 5 | . 1 . 4 . 7 . 15 Ballistic Gun 18 | . 22 28 21 21 9 22 17 Slashing Weapon 1 | . . . . . 7 . . Naked Turns . | . . . . . . . . Heaviest Build 202 | 6 43 43 80 84 187 187 202 Greatest Support 42 | 20 40 40 40 40 40 40 42 Greatest Overweight (x) 9 | 1 2 1 3 2 9 4 4 Average Overweight (x) 1 | . . 1 1 1 2 4 4 Largest Inventory Capacity 44 | 6 16 16 28 28 44 44 44 Average Capacity 28 | 4 12 16 24 28 28 44 44 Most Carried 44 | 5 16 16 28 28 44 44 44 Average Carried 26 | 3 10 16 22 27 25 44 43 Final Capacity 44 | 6 16 16 28 28 44 44 44 Final Carried 44 | 5 16 16 28 28 44 44 44 Class Distribution -------------------- 61% | Hauler-Mutant 26% | Mutant 12% | Commander-Mutant Dominant Class ---------------- Mutant | -10/Materials Commander-Mutant | -10/Mines Hauler-Mutant | -9/Materials Hauler-Mutant | -9/Mines Hauler-Mutant | -9/Exiles Hauler-Mutant | -8/Mines Hauler-Mutant | -8/Materials Resources | -11 -10 -10 -9 -9 -9 -8 -8 ----------- Run | Scr Mat Min Mat Min Exi Min Mat Matter Collected 3934 | 348 686 82 1066 244 587 45 876 Remotely . | . . . . . . . . Salvage Created 4636 | 242 486 10 1539 395 451 64 1449 Parts 349 | 23 35 . 99 25 66 7 94 Haulers Intercepted 7 | . 2 . 2 . . . 3 Recyclers Shooed 3 | . . . 1 . . . 2 Parts Field Recycled . | . . . . . . . . Retrieved Matter . | . . . . . . . . Parts Self-Destructed . | . . . . . . . . Prevented . | . . . . . . . . Kills | -11 -10 -10 -9 -9 -9 -8 -8 ------- Run | Scr Mat Min Mat Min Exi Min Mat Combat Hostiles Destroyed 89 | . 10 1 29 11 3 4 31 Melee 1 | . . . . . 1 . . Guns 78 | . 7 1 29 11 2 4 24 Cannons 3 | . 3 . . . . . . AOE 6 | . . . . . . . 6 Classes Destroyed 15 | 3 4 1 4 . 2 . 1 Worker 5 | 2 . . 1 . . . 2 Tunneler 7 | 5 1 . . . . . 1 Hauler 7 | . 2 . 2 . . . 3 Recycler 4 | 1 . . 2 . . . 1 Operator 2 | . . . 1 . . . 1 Turret 1 | . . . . . 1 . . Watcher 11 | . 3 . 4 . . . 4 Swarmer 28 | . 3 . 4 4 . 4 13 Grunt 35 | . 7 . 14 5 . . 9 Brawler 2 | . . . 1 1 . . . Duelist 3 | . . . 2 1 . . . Sentry 16 | . . . 8 . . . 8 Hunter 1 | . . . . . . . 1 Zionite 8 | . . . . . 8 . . Assembled 3 | . . 1 . . 2 . . Best Kill Streak 5 | 4 3 1 4 4 4 4 5 Combat Bots Only 4 | . 3 1 3 4 2 4 4 Max Kills in Single Turn 3 | 1 1 1 2 2 1 2 3 Gunslinging 1 | . . . 1 1 . 1 . Exploded 3 | . . . . . . . 3 Melee 1 | . . . . . 1 . . Uniques/NPCs Destroyed 4 | . . . . . 4 . . 8R-AWN (-9/Exiles) EX-DEC (-9/Exiles) EX-HEX (-9/Exiles) EX-BIN (-9/Exiles) Combat | -11 -10 -10 -9 -9 -9 -8 -8 -------- Run | Scr Mat Min Mat Min Exi Min Mat Damage Taken 5631 | . 514 76 1266 338 1117 150 2170 Core 574 | . 98 24 160 43 125 18 106 Absorbed by Shields . | . . . . . . . . Core Remaining (%) 54 | 100 . 51 . . . 13 . Volleys Fired 461 | 26 73 12 122 32 66 7 123 Largest 2 | 2 2 2 2 2 1 2 2 Hottest 100 | 40 100 46 100 57 33 46 79 Shots Fired 829 | 52 134 24 236 62 66 14 241 Gun 762 | 52 95 24 232 60 59 14 226 Cannon 41 | . 28 . . 2 . . 11 Launcher 11 | . . . . . 7 . 4 Special 15 | . 11 . 4 . . . . Kinetic 792 | 52 123 24 232 62 59 14 226 Thermal 15 | . 11 . 4 . . . . Explosive 11 | . . . . . 7 . 4 Electromagnetic 11 | . . . . . . . 11 Robot Hit Streak 27 | 7 22 7 26 22 27 10 20 Robot Miss Streak 7 | 2 6 7 4 1 2 1 4 Penetration Max . | . . . . . . . . Secondary Targets 8 | . . . 1 2 . 1 4 Max Gunslinging Chain 1 | . . . 1 1 . 1 1 Shots Hit Robots 632 | 35 83 13 168 51 93 12 177 Core Hits 232 | 12 31 4 58 16 36 4 71 Critical Hits 5 | . . . 2 . 2 . 1 Critical Kills 1 | . . . 1 . . . . Critical Parts Destroyed 2 | . . . 1 . . . 1 Melee Attacks 63 | . . . . . 63 . . Impact . | . . . . . . . . Slashing 59 | . . . . . 59 . . Piercing . | . . . . . . . . Sneak Attacks 4 | . . . . . 4 . . Combat Hostiles . | . . . . . . . . Follow-up Attacks . | . . . . . . . . Damage Inflicted 10792 | 315 914 192 2598 847 2689 161 3076 Guns 7894 | 315 632 192 2598 847 721 161 2428 Cannons 424 | . 282 . . . . . 142 Explosions 833 | . . . . . 327 . 506 Melee 1641 | . . . . . 1641 . . Ramming . | . . . . . . . . Kinetic 8176 | 315 914 192 2598 847 721 161 2428 Thermal . | . . . . . . . . Explosive 833 | . . . . . 327 . 506 Electromagnetic 142 | . . . . . . . 142 Impact . | . . . . . . . . Slashing 1641 | . . . . . 1641 . . Piercing . | . . . . . . . . Highest Corruption . | . . . . . . . . Average Corruption . | . . . . . . . . Corruption Purged . | . . . . . . . . Overload Shots . | . . . . . . . . Overflow Damage 113 | . 21 . . . 14 . 78 Projectiles 41 | . 21 . . . . . 20 Explosions 58 | . . . . . . . 58 Melee 14 | . . . . . 14 . . Knockbacks 6 | . 6 . . . . . . Impact . | . . . . . . . . Kinetic 6 | . 6 . . . . . . Secondary . | . . . . . . . . Self-Inflicted Damage . | . . . . . . . . Shots . | . . . . . . . . Rammed . | . . . . . . . . Targets Rammed . | . . . . . . . . Kicked . | . . . . . . . . Crushed . | . . . . . . . . Highest Temperature 393 | . 80 . 24 24 249 . 393 Average Temperature 74 | . 23 . 4 8 119 . 73 Received Heat Transfer 1467 | . 282 . 381 114 15 . 675 Effects 7 | . . . . . 2 . 5 Shutdowns 1 | . . . . . . . 1 Energy Bleed 1 | . . . . . 1 . . Interference 4 | . . . . . 1 . 3 Short Circuit 1 | . . . . . . . 1 Siege Activations . | . . . . . . . . Robots Corrupted 1 | . . . . . . . 1 Combat Hostiles 1 | . . . . . . . 1 Parts Fried 1 | . . . . . . . 1 Impact Corruptions . | . . . . . . . . Robots Melted . | . . . . . . . . Combat Hostiles . | . . . . . . . . Parts Melted 2 | . . . . . 2 . . Heat Transferred . | . . . . . . . . Parts Sabotaged . | . . . . . . . . Parts Stolen . | . . . . . . . . Parts Stripped . | . . . . . . . . Power Chain Reactions . | . . . . . . . . Missiles Intercepted . | . . . . . . . . Alert | -11 -10 -10 -9 -9 -9 -8 -8 ------- Run | Scr Mat Min Mat Min Exi Min Mat Peak Influence 616 | 40 223 113 559 269 . 98 616 Initial 199 | . 26 . . 199 . . . Average 145 | 17 72 24 297 177 . 8 162 Maximum Alert Level 2 | . 1 . 2 1 . . 2 Low Security (%) 71 | 100 99 100 37 56 . 100 62 Level 1 18 | . . . 28 43 . . 31 Level 2 9 | . . . 33 . . . 6 Level 3 . | . . . . . . . . Level 4 . | . . . . . . . . Level 5 . | . . . . . . . . High Security . | . . . . . . . . Max Security . | . . . . . . . . Squads Dispatched 13 | . 1 1 5 . . . 6 Investigation 6 | . 1 . 4 . . . 1 Extermination . | . . . . . . . . Reinforcement 3 | . . . 1 . . . 2 Assault 2 | . . 1 . . . . 1 Garrison 2 | . . . . . . . 2 Intercept . | . . . . . . . . Construction Impeded . | . . . . . . . . Haulers Reinforced . | . . . . . . . . Stealth | -11 -10 -10 -9 -9 -9 -8 -8 --------- Run | Scr Mat Min Mat Min Exi Min Mat Distress Signals 7 | . 1 . 3 . . . 3 Communications Jammed . | . . . . . . . . Distress Signals . | . . . . . . . . Times Spotted 175 | . 18 18 45 13 20 4 57 Peak Tracking Total 9 | . 3 4 9 4 9 4 7 Tactical Retreats 13 | . 2 . 5 . 3 . 3 Traps | -11 -10 -10 -9 -9 -9 -8 -8 ------- Run | Scr Mat Min Mat Min Exi Min Mat Traps Triggered 3 | . . . 3 . . . . Indirectly . | . . . . . . . . Trap Hack Attempts . | . . . . . . . . Triggered . | . . . . . . . . Disarmed . | . . . . . . . . Reprogrammed . | . . . . . . . . Reused . | . . . . . . . . Traps Extracted . | . . . . . . . . Installed . | . . . . . . . . Triggered . | . . . . . . . . Exploded 3 | . . . . . 3 . . Machines | -11 -10 -10 -9 -9 -9 -8 -8 ---------- Run | Scr Mat Min Mat Min Exi Min Mat Machines Disabled 10 | . 1 . 2 . 5 . 2 Max in Single Turn 2 | . 1 . 1 . 2 . 1 Machines Sabotaged . | . . . . . . . . Garrisons Compromised . | . . . . . . . . Overloaded Fab Kills . | . . . . . . . . Fab Network Shutdowns . | . . . . . . . . Hacking | -11 -10 -10 -9 -9 -9 -8 -8 --------- Run | Scr Mat Min Mat Min Exi Min Mat Machines Accessed 33 | . 11 . 12 1 2 1 6 Terminals 19 | . 8 . 8 . . 1 2 Fabricators . | . . . . . . . . Repair Stations 4 | . 1 . 2 . . . 1 Recycling Units 5 | . 2 . 1 . . . 2 Scanalyzers 2 | . . . 1 . . . 1 Garrison Access . | . . . . . . . . Total Hacks 109 | . 39 . 41 1 2 3 23 Successful 76 | . 26 . 30 1 2 1 16 Failed 32 | . 12 . 11 . . 2 7 Catastrophic . | . . . . . . . . Database Lockouts 1 | . 1 . . . . . . Manual 58 | . 28 . 20 . 1 3 6 Terminals 63 | . 30 . 27 . . 3 3 Fabricators . | . . . . . . . . Repair Stations 13 | . 2 . 7 . . . 4 Recycling Units 16 | . 7 . 3 . . . 6 Scanalyzers 14 | . . . 4 . . . 10 Garrison Access . | . . . . . . . . Terminal Hacks 27 | . 14 . 9 1 2 1 . Record 1 | . . . . . 1 . . Part Schematic 2 | . 1 . . . . 1 . Robot Analysis 9 | . 5 . 4 . . . . Prototype ID Bank 3 | . 1 . 2 . . . . Open Door 1 | . . . . 1 . . . Level Access Points 1 | . 1 . . . . . . Branch Access Points 2 | . 1 . 1 . . . . Terminal Index 2 | . 1 . 1 . . . . Unreport Threat 2 | . 2 . . . . . . Locate Traps 1 | . 1 . . . . . . Hauler Manifests 1 | . . . 1 . . . . Zone Layout 1 | . 1 . . . . . . EX-Prototype ID Bank 1 | . . . . . 1 . . Fabricator Hacks . | . . . . . . . . Repair Station Hacks 13 | . 2 . 7 . . . 4 Scan Component 7 | . 1 . 4 . . . 2 Repair 6 | . 1 . 3 . . . 2 Recycling Unit Hacks 4 | . 2 . 1 . . . 1 Retrieve Components 4 | . 2 . 1 . . . 1 Scanalyzer 13 | . . . 4 . . . 9 Insert Component 6 | . . . 2 . . . 4 Analyze 7 | . . . 2 . . . 5 Garrison Access Hacks . | . . . . . . . . Unauthorized Hacks 19 | . 8 . 9 . . . 2 Terminals 13 | . 5 . 8 . . . . Track 2 | . . . 2 . . . . Assimilate 1 | . 1 . . . . . . Botnet 7 | . 2 . 5 . . . . Operators 3 | . 2 . 1 . . . . Fabricators . | . . . . . . . . Repair Stations . | . . . . . . . . Recycling Units 6 | . 3 . 1 . . . 2 Reject 1 | . . . . . . . 1 Recyclers 1 | . 1 . . . . . . Mask 4 | . 2 . 1 . . . 1 Scanalyzers . | . . . . . . . . Garrison Access . | . . . . . . . . Data Cores Recovered . | . . . . . . . . Used . | . . . . . . . . Hacking Detections 28 | . 10 . 12 . . 1 5 Full Trace Events 7 | . 3 . 2 . . 1 1 Feedback Events . | . . . . . . . . Feedback Blocked . | . . . . . . . . Robot Schematics Acquired . | . . . . . . . . Robots Built . | . . . . . . . . Matter . | . . . . . . . . Time . | . . . . . . . . Total Robot Build Rating . | . . . . . . . . Part Schematics Acquired 7 | . 1 . 2 . . 1 3 Parts Built . | . . . . . . . . Matter . | . . . . . . . . Time . | . . . . . . . . Total Part Build Rating . | . . . . . . . . Parts Repaired 6 | . 1 . 3 . . . 2 Time 197 | . 13 . 78 . . . 106 Parts Recycled . | . . . . . . . . Recycled Matter . | . . . . . . . . Retrieved Matter . | . . . . . . . . Retrieved Components 27 | . 16 . 9 . . . 2 Parts Scanalyzed 6 | . . . 2 . . . 4 Part Schematics Acquired 5 | . . . 2 . . . 3 Parts Damaged . | . . . . . . . . Bothacking | -11 -10 -10 -9 -9 -9 -8 -8 ------------ Run | Scr Mat Min Mat Min Exi Min Mat Used RIF Installer . | . . . . . . . . Robots Hacked 4 | . . . . . 4 . . Non-combat 3 | . . . . . 3 . . Combat 1 | . . . . . 1 . . Robot Hacks Applied 4 | . . . . . 4 . . parse_system 4 | . . . . . 4 . . Relay Couplers Released . | . . . . . . . . Robots Rewired . | . . . . . . . . Allies Hacked . | . . . . . . . . Hacks Repelled . | . . . . . . . . Allies | -11 -10 -10 -9 -9 -9 -8 -8 -------- Run | Scr Mat Min Mat Min Exi Min Mat Total Allies 6 | . 1 4 . 1 . . . Largest Group 5 | . 1 5 5 1 . . . Highest-Rated Group 81 | . 10 81 81 31 . . . Highest-Rated Ally 31 | . 10 31 31 31 . . . Total Orders 4 | . 2 2 . . . . . STAY 2 | . 1 1 . . . . . FOLLOW 2 | . 1 1 . . . . . Ally Attacks 76 | . . 35 33 8 . . . Total Damage 935 | . . 432 379 124 . . . Kills 22 | . . 14 6 2 . . . Allies Corrupted . | . . . . . . . . Allies Melted . | . . . . . . . . Intel | -11 -10 -10 -9 -9 -9 -8 -8 ------- Run | Scr Mat Min Mat Min Exi Min Mat Robot Analysis Total 9 | . 5 . 4 . . . . Derelict Logs Recovered 4 | . . 2 . 2 . . . Drone Launches . | . . . . . . . . Drone Recoveries . | . . . . . . . . Exploration | -11 -10 -10 -9 -9 -9 -8 -8 ------------- Run | Scr Mat Min Mat Min Exi Min Mat Turns Passed 14294 | 126 1619 1645 2710 1084 3555 1101 2454 Spaces Moved 6134 | 57 826 858 1175 542 1419 451 806 Core 149 | 48 101 . . . . . . Treads 5571 | 9 725 858 1175 542 1005 451 806 Legs 60 | . . . . . 60 . . Wheels . | . . . . . . . . Hover 354 | . . . . . 354 . . Flight . | . . . . . . . . Fastest Speed 50 | 50 50 180 180 180 150 240 237 Average Speed 197 | 76 159 180 180 180 220 240 238 Slowest Speed 360 | 160 180 180 220 200 360 240 245 Overloaded Moves . | . . . . . . . . Propulsion Burnouts . | . . . . . . . . Robots Hopped . | . . . . . . . . Cave-ins Triggered . | . . . . . . . . Exploration Rate (%) 78 | 3 98 99 89 91 91 97 61 Regions Visited 7 Branch Regions 4 Pre-discovered Areas 2 | . . . . 1 1 . . Known Exits Taken 4 | . 1 1 1 . . 1 . Unknown Exits Taken 3 | 1 . . . 1 1 . . Scrap Searched 3 | . . 1 . 1 . 1 . Spaces Dug 12 | . 6 . 4 2 . . . Terrain Destroyed 41 | . 10 . 4 2 5 . 20 Melee . | . . . . . . . . Projectile 16 | . 10 . 4 2 . . . AOE 25 | . . . . . 5 . 20 Terrain Rammed . | . . . . . . . . Walls Destroyed . | . . . . . . . . Machines Disabled . | . . . . . . . . Actions | -11 -10 -10 -9 -9 -9 -8 -8 --------- Run | Scr Mat Min Mat Min Exi Min Mat Total 7403 | 96 992 937 1530 590 1699 457 1102 Wait 397 | 3 37 64 141 2 39 . 111 Move 6127 | 56 825 857 1174 541 1418 450 806 Hop . | . . . . . . . . Pick Up 108 | 6 21 1 27 4 36 . 13 Fast Attach 30 | 4 4 . 8 . 9 . 5 Attach 23 | 1 2 . 8 . 8 . 4 Detach 21 | . 2 . 5 . 13 . 1 Swap 70 | . 13 1 22 5 10 . 19 Drop 103 | . 15 2 23 6 37 . 20 Fire 461 | 26 73 12 122 32 66 7 123 Melee 63 | . . . . . 63 . . Ram . | . . . . . . . . Kick . | . . . . . . . . Crush . | . . . . . . . . Escape Stasis . | . . . . . . . . Rewire . | . . . . . . . . Trap . | . . . . . . . . Miscellaneous . | . . . . . . . . Route ------- -11/Scrapyard -10/Materials (discovered 4 exits: *Mat x3 / *Min) -10/Mines (discovered 2 exits: *Mat x2) -9/Materials (discovered 4 exits: *Mat x2 / *Min x2) -9/Mines (discovered 3 exits: *Mat x2 / *Exi) -9/Exiles (discovered 2 exits: *Min x2) -8/Mines (discovered 2 exits: *Mat x2) -8/Materials (discovered 2 exits: [*Fac x2]) History --------- Turn | Location | Event 9 | -11/Scrapyard | Discovered new exit (range 16) 127 | -11/Scrapyard | Entered Materials 266 | -10/Materials | Discovered new exit (range 15) 316 | -10/Materials | Build established: Mutant 690 | -10/Materials | Discovered new exit (range 16) 855 | -10/Materials | Discovered new exit (range 14) 1029 | -10/Materials | Identified exit to Mines 1029 | -10/Materials | Identified exit to Materials 1029 | -10/Materials | Central database locked down 1193 | -10/Materials | Repaired Lgt. Treads 1746 | -10/Materials | Entered Mines 1746 | -10/Mines | Accompanied by 1 ally 1767 | -10/Mines | Met a Derelict bent on vengeance 1793 | -10/Mines | Assisted by bots powering up and referring to "LRC-V3" 1837 | -10/Mines | Assembled infested the area 2092 | -10/Mines | Build established: Commander-Mutant 2218 | -10/Mines | Discovered exit to Materials (range 11) 2391 | -10/Mines | Learned 4 Materials zone layouts 2393 | -10/Mines | Discovered exit to Materials (range 11) 2566 | -10/Mines | Learned 2 Materials zone layouts 2684 | -10/Mines | Met a Derelict testing a Signal Generator 3391 | -10/Mines | Entered Materials 3391 | -9/Materials | Accompanied by 5 allies 3391 | -9/Materials | Evolved 2 slots: Utility x2 3392 | -9/Materials | Identified exit to Mines 3843 | -9/Materials | Build established: Mutant 4010 | -9/Materials | Repaired Lgt. Treads 4037 | -9/Materials | Repaired Lrg. Storage Unit 4214 | -9/Materials | Build established: Hauler-Mutant 4866 | -9/Materials | Discovered new exit (range 15) 4911 | -9/Materials | Identified exit to Materials 5648 | -9/Materials | Discovered exit to Materials (range 3) 5947 | -9/Materials | Repaired Lgt. Treads 6101 | -9/Materials | Entered Mines 6108 | -9/Mines | Received a Rocket Launcher from a helpful Derelict 6184 | -9/Mines | Discovered exit to Materials (range 5) 6252 | -9/Mines | Escorted by a lone wolf Derelict 6352 | -9/Mines | Learned Materials stockpile data 6402 | -9/Mines | A weapon hastily lodged in a ceiling crevice suddenly fell to the ground 6621 | -9/Mines | Learned location of Zion (-6) 6879 | -9/Mines | Found the Drone Emporium 6898 | -9/Mines | Found Prototype Device 6982 | -9/Mines | Core integrity fell below 50% 7046 | -9/Mines | Discovered exit to Materials (range 4) 7176 | -9/Mines | Deemed a non-threat by the Exiles lab entrance 7176 | -9/Mines | Discovered new exit (range 5) 7185 | -9/Mines | Entered Exiles 7230 | -9/Exiles | Met 8R-AWN 7265 | -9/Exiles | Met EX-HEX 7344 | -9/Exiles | Met EX-DEC 7425 | -9/Exiles | Met EX-BIN 7456 | -9/Exiles | Aligned with FarCom system 7458 | -9/Exiles | Given EX-Vault access code 7499 | -9/Exiles | Opened EX-Vault 7542 | -9/Exiles | Warned to stay clear of 0b10 Research branches 7674 | -9/Exiles | Discovered new exit (range 10) 7697 | -9/Exiles | Identified Decoy Drone Bay 7920 | -9/Exiles | Found XL Autogun Array 7988 | -9/Exiles | Build established: Mutant 8444 | -9/Exiles | Attacked by the Exiles 8593 | -9/Exiles | Lost 3 parts (2n1w) 8667 | -9/Exiles | Destroyed 8R-AWN 8671 | -9/Exiles | Found 8R-AWN's Boregun 8938 | -9/Exiles | Destroyed EX-DEC 8993 | -9/Exiles | Destroyed EX-HEX 9009 | -9/Exiles | Core integrity fell below 20% 9079 | -9/Exiles | Destroyed EX-BIN 9610 | -9/Exiles | Build established: Hauler-Mutant 9909 | -9/Exiles | Found Army-in-a-Box 9920 | -9/Exiles | Found Skeleton Box 10435 | -9/Exiles | Found System Purifier 10514 | -9/Exiles | Found Deploy-a-Sentry 10711 | -9/Exiles | Discovered new exit (range 14) 10740 | -9/Exiles | Stole four prototypes: Skeleton Box, Army-in-a-Box, XL Autogun Array, Deploy-a-Sentry 10740 | -9/Exiles | Entered Mines 11354 | -8/Mines | Discovered exit to Materials (range 14) 11822 | -8/Mines | Discovered exit to Materials (range 7) 11841 | -8/Mines | Entered Materials 11841 | -8/Materials | Evolved 2 slots: Utility x2 13166 | -8/Materials | Discovered new exit (range 4) 13421 | -8/Materials | Repaired Adv. Recalibrator 13467 | -8/Materials | Repaired Adv. Treads 13950 | -8/Materials | Discovered new exit (range 15) 14122 | -8/Materials | Garrison activated, responded to threat 14241 | -8/Materials | First assault squad dispatched 14295 | -8/Materials | Self-destructed Last Messages --------------- 14255_ K-01 Serf collects debris. 14260_ K-01 Serf cleans the Terminal. 14267_ W-25 Informer sends out distress signal. 14267_ K-01 Serf cleans the Terminal. 14272_ W-25 Informer destroyed. 14275_ K-01 Serf cleans the Terminal. 14276_ K-01 Serf collects debris. 14278_ K-01 Serf cleans the Terminal. 14281_ Y-45 Defender destroyed. 14282_ K-01 Serf collects debris. 14286_ K-01 Serf cleans the Fusion Modulator. 14288_ K-01 Serf collects debris. 14291_ Hvy. Assault Rifle destroyed. 14292_ K-01 Serf cleans the Fusion Modulator. 14294_ C-30 ARC bursts open, deploying its payload. 14294_ G-50 Soldier unfolds itself. 14294_ G-47 Trooper unfolds itself. 14294_ I-25 Savior unfolds itself. 14294_ Hvy. Armor Plating destroyed. 14294_ K-01 Serf collects debris. Map ----- +----------------------------------------------------+ | #?????????????# """" # ###### | | ########??????# """" # | | # #??????# """" # ! ###### | | # #??????# ## #?????# #######+#### | | # """ #??????###########? ??????#]#???## | | + """ #?????????????????? ??????#!#???# | | # """ #?????????????????? ??????#%#???## """ " | | # #?????????????????? ??????#!#????# """ " | | ########?????????????????? ??????#]#????# """ " | | #????????????????????????? ??##### #????# | | #????????????????????????????# ############ | | #????????????????????????????# | | #????????????????????????????# | | #????????????????????????????# % | | #????????????????????????????# ###+##### | | #????????????????????????????## ## ?## | | #?????????????????????????????# ## """ ## | | #?????????????????????????????# ## """ ## | | " #?????????????????????????????# ## """ [## | | " #?????????????????########+#??# ## """ ## | | " "?????????????????# k #??# ## ## | | " "?????##+#####??### ] [""" #??# #####+#### | | ? "?????# ??? + *!""" #??# # """ ## | | ? T?????# #????# ""Y""" #??# # "R" ## | | ? "?????# #????# ""=%! #??# # " " ## | | ? ??????# #????# "T@""" #??# # ! ## | | ? ??????# #????# "" """ #??# #"""% ! ## | | ?????????# #????# ""g""" #??# #""" ##% % | | " ####### #????# i gk #??# #""" ## % | | " ! #????#####/####??# #%%= ## | | %%%=######## =g ##### ##+####### | | "" =%![!%! ! ! = %%% | | ??# ="T"%[###########= T | | ??# =%= #?????????# | | *= #?????????# ############# """ # | | #??######### ##??????????## """ # | | #??# # #?????###### # """ # | | " #??# # #?????#[ ![[# """ # | | " #??# !!! + #?????# ![ # """ # | | " #??# !!! # #?????# ] ![ # # | | # #??#] !!! # #?????# # = # | | #?# "" #??#######?# #?????? !# # | | ??# """ ############ #???????? # # | | ?? """ ###########+## # | | ? ???? ] | | ??????? ]] | | ???????####+############# ###################### | | ????????????????????????# #?????????############ | | ????????????????????????# ####??????# | | ????????????????????????# !!##?????# ! | +----------------------------------------------------+ Best States ------------- Heat Dissipation 31 Energy Generation 19 Energy Capacity 310 Matter Stores 300 Matter Capacity 300 Sight Range 16 Robot Scan Range 13 Terrain Scan Density 10 Armor Coverage 600 Core Shielding 20 Weapon Shielding 33 Evasion (%) 50 Recoil Reduction 2 Item Schematics ----------------- Hcp. Storage Unit | -10/Materials | Hacked Imp. Flight Unit | -9/Materials | Scanalyzed Hacking Suite | -9/Materials | Scanalyzed System Shield | -8/Mines | Hacked Cmb. Antigrav System | -8/Materials | Scanalyzed Imp. VTOL Module | -8/Materials | Scanalyzed Gravity Neutralizing Apparatus | -8/Materials | Scanalyzed Robot Schematics ------------------ None Fabricated ------------ Nothing Alien Tech Used ----------------- None Achievements -------------- None Challenges ------------ None Game ------ Seed TacticalGlidesysWeb Manual? 0 Play Time 01:21:16 Cumulative 380.7 hours Start 2021.07.09 @ 20:33:30 End 2021.07.10 @ 17:52:43 Sessions 6 Manual Loads 0 Difficulty Rogue Special Mode None Game No. 311 Rogue 311 Adventurer 0 Explorer 0 Win Type - Total 1 Types 0/0/0/1/0/0/0/0/0 Lore% 70 Gallery% 79 Achievement% 60 Wizard Run 0 Options --------- ASCII 0 Keyboard 1 Movement Numpad Keybinds 0 Fullscreen 1 Font 12/Terminus Map View 83x54 Tactical HUD 1 Map Filters NONE Filters NONE Steam 1 RUN: aeb5de0d-a330-4d22-a59c-103467548b90